bitfinex/quotes_ETHUSD_20240822
["timestamp","ask_amount","ask_price","bid_price","bid_amount"]
[1724356121367,0.00191776,2611.9,2611.8,4.8524985]
[1724356122111,0.00191776,2611.9,2611.8,1.0237285]
[1724356122286,0.00191776,2611.9,2611.7,6.408615]
[1724356122682,0.00191776,2611.9,2611.7,6.408545]
[1724356122884,0.00191776,2611.9,2611.7,6.408535]
[1724356123088,0.00191776,2611.9,2611.7,10.237375]
[1724356123587,0.00191776,2611.9,2611.7,6.408535]
[1724356124175,0.00191776,2611.9,2611.7,5.47784]
[1724356124977,0.00191776,2611.9,2611.7,9.30669]
[1724356125316,0.00191776,2611.9,2611.7,9.30666]
[1724356125547,0.00191776,2611.9,2611.8,3.82877]
[1724356125681,0.00191776,2611.9,2611.8,6.29437]
[1724356125880,0.00191776,2611.9,2611.8,7.471589]
[1724356127407,2.01092129,2611.9,2611.8,7.471589]
[1724356127603,0.00191776,2611.9,2611.8,7.471589]
[1724356129241,0.00191776,2611.9,2611.8,11.300359]
[1724356130221,0.00191776,2611.9,2611.8,15.129129]
[1724356130435,0.00191776,2611.9,2611.8,15.679129]
[1724356130731,0.00191776,2611.9,2611.8,15.804359]
[1724356130917,0.00191776,2611.9,2611.8,11.300359]
[1724356131428,0.00191776,2611.9,2611.8,5.005989]
[1724356132634,0.00191776,2611.9,2611.8,3.82877]
[1724356134722,2.34861776,2611.9,2611.5,3.82912]
[1724356134951,6.17724776,2611.9,2611.5,3.82912]
[1724356135113,4.35760484,2611.9,2611.5,7.65825]
[1724356135312,4.35760484,2611.9,2611.5,3.82912]
[1724356135927,4.35703701,2611.9,2611.5,7.65826]
[1724356136126,4.35698306,2611.9,2611.5,7.65825]
[1724356136302,4.35698306,2611.9,2611.6,3.82905]
[1724356137396,2.34861776,2611.9,2611.6,3.82905]
[1724356138426,0.00191776,2611.9,2611.8,3.82877]
[1724356138700,0.00191776,2611.9,2611.8,7.65754]
[1724356140411,0.00191776,2611.9,2611.6,3.82895]
[1724356140607,0.00191776,2611.9,2611.7,3.82886]
[1724356141030,0.00191776,2611.9,2611.8,3.82877]
[1724356141660,0.00191776,2611.9,2611.8,8.423303]
[1724356144458,0.00191776,2611.9,2611.8,10.811403]
[1724356146715,0.00191776,2611.9,2611.8,8.423303]
[1724356148119,0.00191776,2611.9,2611.8,10.678703]
[1724356149633,0.00191776,2611.9,2611.8,18.461473]
[1724356149792,0.00191776,2611.9,2611.8,19.011473]
[1724356151669,0.00191776,2611.9,2611.8,22.011473]
[1724356151877,0.00191776,2611.9,2611.8,25.840243]
[1724356152445,0.1249985,2612.1,2612.0,16.01392]
[1724356152641,0.1249985,2612.1,2612.0,40.10519473]
[1724356152841,0.1249985,2612.1,2612.0,42.10148172]
[1724356153042,0.1249985,2612.1,2612.0,39.43414972]
[1724356153481,0.1249985,2612.1,2612.0,37.43786273]
[1724356154047,0.1249985,2612.1,2612.0,37.43785044]
[1724356154369,0.1249985,2612.1,2612.0,36.10699767]
[1724356155682,0.1249985,2612.1,2612.0,37.43783519]
[1724356155908,0.1249985,2612.1,2612.0,37.43779272]
[1724356156084,0.1249985,2612.1,2612.0,36.10699767]
[1724356156294,0.1249985,2612.1,2612.0,37.43780754]
[1724356156598,0.1249985,2612.1,2612.0,36.10699767]
[1724356157966,0.1249985,2612.1,2612.0,37.43777994]
[1724356158510,0.1249985,2612.1,2612.0,36.10699767]
[1724356158803,0.1249985,2612.1,2612.0,37.43776386]
[1724356159012,0.1249985,2612.1,2612.0,37.43775927]
[1724356159153,0.1249985,2612.1,2612.0,36.10699767]
[1724356163115,0.1249985,2612.1,2612.0,31.26695867]
[1724356165293,0.1249985,2612.1,2612.0,18.41788067]
[1724356165496,0.1249985,2612.1,2612.0,14.48544]
[1724356165825,0.1249985,2612.1,2612.0,16.94054]
[1724356166583,2.2548,2613.2,2612.0,12.625637]
[1724356166790,2.2548,2613.2,2612.9,3.82716]
[1724356166990,2.2548,2613.2,2612.9,7.65425]
[1724356167381,2.2548,2613.2,2612.9,7.65417]
[1724356167588,2.2548,2613.2,2612.9,3.82708]
[1724356168108,2.2548,2613.2,2612.9,7.65415]
[1724356168329,2.2548,2613.2,2612.9,3.82707]
[1724356168832,2.3764,2613.0,2612.7,3.82736]
[1724356169125,2.3764,2613.0,2612.7,7.65475]
[1724356169482,2.3764,2613.0,2612.8,3.8273]
[1724356172736,2.3764,2613.0,2612.9,3.82716]
[1724356172913,2.3764,2613.0,2612.9,7.65432]
[1724356175908,2.3739,2613.5,2613.1,3.82681]
[1724356176460,3.82628,2613.5,2613.1,3.82681]
[1724356176713,2.3739,2613.4,2613.1,3.82681]
[1724356179362,2.3739,2613.4,2613.0,3.82701]
[1724356179590,3.82659,2613.3,2612.9,1.647]
[1724356179767,2.3939,2613.2,2612.8,3.82721]
[1724356180165,2.4142,2613.1,2612.8,3.82721]
[1724356180378,6.24108,2613.1,2612.7,1.647]
[1724356180710,2.4142,2613.1,2612.7,5.47437]
[1724356181219,2.4142,2613.1,2612.8,3.82729]
[1724356181557,2.4142,2613.1,2612.9,1.647]
[1724356181787,2.4142,2613.1,2613.0,3.82701]
[1724356182392,2.4142,2613.1,2612.9,5.47414]
[1724356182897,2.4142,2613.1,2612.9,3.82714]
[1724356183660,2.4142,2613.1,2612.7,3.82744]
[1724356184017,2.4256,2613.0,2612.7,5.47444]
[1724356186491,2.4256,2613.0,2612.8,3.82731]
[1724356190403,2.4256,2613.0,2612.9,3.82716]
[1724356192411,4.4297036,2613.3,2612.9,2.47548538]
[1724356192620,2.4256,2613.3,2613.1,3.82678]
[1724356194179,4.4297036,2613.3,2613.0,3.827]
[1724356195005,8.2565036,2613.2,2612.7,9.30176]
[1724356195205,8.2565036,2613.2,2612.7,5.47437]
[1724356195419,8.2565036,2613.2,2612.8,3.82729]
[1724356195815,4.4297036,2613.2,2612.8,3.82729]
[1724356196976,4.4328629,2613.2,2612.8,3.82729]
[1724356197414,2.0072629,2613.1,2612.8,3.82729]
[1724356200222,2.0072629,2612.9,2612.8,8.584766]
[1724356200418,2.0072629,2613.1,2613.0,3.82701]
[1724356200613,2.4256,2613.2,2613.1,3.82687]
[1724356200805,4.83431549,2613.4,2613.1,3.82687]
[1724356201014,2.00963762,2613.2,2613.1,8.201127]
[1724356201220,2.00963762,2613.4,2613.3,7.65314]
[1724356201389,4.43523762,2613.6,2613.4,3.82629]
[1724356201597,4.43523762,2613.6,2613.3,5.47357]
[1724356201598,2.00963762,2613.5,2613.3,5.47357]
[1724356201954,2.00963762,2613.5,2613.4,3.82643]
[1724356202455,2.00963762,2613.5,2613.3,1.647]
[1724356202456,4.43523762,2613.6,2613.5,3.82628]
[1724356202890,4.43523762,2613.6,2613.4,3.82642]
[1724356203892,4.73906515,2613.8,2613.5,5.47328]
[1724356204135,2.00839004,2613.7,2613.5,5.47328]
[1724356204290,2.00839004,2613.7,2613.5,1.647]
[1724356204872,2.00839004,2613.7,2613.4,4.756406]
[1724356205132,2.00780994,2613.7,2613.4,8.582686]
[1724356205314,2.00780994,2613.7,2613.5,1.647]
[1724356205710,2.00780994,2613.7,2613.4,4.756336]
[1724356205912,2.00780994,2613.7,2613.4,8.582676]
[1724356206137,2.00780994,2613.7,2613.4,4.756336]
[1724356206308,2.00780994,2613.7,2613.5,2.2873336]
[1724356206509,2.3275,2613.8,2613.5,6.1135936]
[1724356206510,4.33530994,2613.8,2613.5,6.1135936]
[1724356206710,2.00780994,2613.7,2613.5,6.1135936]
[1724356206932,4.33530994,2613.8,2613.5,6.1135936]
[1724356207124,2.00780994,2613.7,2613.4,3.82634]
[1724356207325,2.00780994,2613.7,2613.4,9.29967]
[1724356207549,4.33530994,2613.8,2613.4,5.47333]
[1724356208450,2.00780994,2613.8,2613.6,1.647]
[1724356208665,4.81547193,2614.0,2613.8,3.82584]
[1724356208666,2.00780994,2614.0,2613.8,3.82584]
[1724356208943,2.00780994,2614.0,2613.9,0.382584]
[1724356209143,2.00780994,2614.1,2613.8,3.82584]
[1724356209354,4.41390994,2614.2,2613.8,3.82584]
[1724356209545,4.41390994,2614.2,2613.9,3.8257]
[1724356209721,2.00780994,2614.1,2613.7,5.47285]
[1724356210051,5.83330994,2614.1,2613.5,11.18618]
[1724356210233,5.83339994,2614.0,2613.5,7.36]
[1724356210410,2.63564099,2614.1,2612.9,7.36]
[1724356210411,3.82653,2613.4,2612.9,7.36]
[1724356210610,2.4817,2613.3,2612.9,3.82702]
[1724356210848,2.4817,2613.3,2613.0,3.82698]
[1724356211148,4.45680994,2613.6,2613.2,5.47362]
[1724356211511,8.28296994,2613.6,2613.1,3.82679]
[1724356211812,8.28296994,2613.6,2613.1,3.82677]
[1724356212214,8.28296994,2613.6,2613.1,7.65355]
[1724356212424,8.28296994,2613.6,2613.1,3.82677]
[1724356212641,8.28296994,2613.6,2613.0,5.47394]
[1724356212836,3.82636,2613.5,2613.0,6.404041]
[1724356214051,2.3327,2613.4,2612.9,3.82707]
[1724356214254,3.82658,2613.3,2612.9,3.82715]
[1724356214450,3.82658,2613.3,2612.7,5.47435]
[1724356214451,2.3327,2613.2,2612.7,3.82735]
[1724356214653,3.82691,2613.1,2612.6,11.18756]
[1724356215018,3.82691,2613.1,2612.6,13.03700594]
[1724356215212,5.83242076,2613.1,2612.6,13.03700594]
[1724356215459,3.82691,2613.1,2612.6,13.03700594]
[1724356215620,4.33821076,2613.2,2612.7,3.82744]
[1724356216154,2.40661291,2613.5,2612.6,9.20944594]
[1724356216155,4.47761076,2613.1,2612.6,7.36]
[1724356216450,2.40661291,2613.4,2612.6,7.36]
[1724356216451,7.65443,2612.9,2612.6,7.36]
[1724356216637,3.82717,2612.9,2612.6,7.36]
[1724356216837,7.65442,2612.9,2612.6,7.36]
[1724356217186,7.65442,2612.9,2612.0,2.271]
[1724356217187,2.2671,2612.8,2612.1,7.36]
[1724356217321,2.2671,2612.4,2612.1,7.36]
[1724356217635,2.2671,2612.4,2611.5,7.36]
[1724356218000,3.82835,2612.1,2611.6,3.82906]
[1724356218119,3.82874,2611.9,2611.3,3.82937]
[1724356218315,2.2872,2612.0,2611.6,3.82895]
[1724356218516,2.2872,2612.0,2611.7,0.382895]
[1724356219893,2.2872,2612.0,2611.7,4.211785]
[1724356220214,2.2872,2612.0,2611.8,3.82876]
[1724356220417,2.4003,2612.3,2611.8,3.82876]
[1724356220827,2.4003,2612.3,2611.8,7.65743]
[1724356221030,2.4003,2612.3,2611.9,0.8040325]
[1724356221245,2.4003,2612.3,2611.5,3.82909]
[1724356221473,2.4003,2612.3,2611.4,3.82925]
[1724356221634,3.82858,2612.0,2611.4,3.82925]
[1724356221957,4.40285829,2612.3,2611.6,3.82905]
[1724356221958,3.82824,2612.2,2611.6,3.82905]
[1724356222173,3.82824,2612.2,2611.7,3.82892]
[1724356222316,3.82824,2612.2,2611.6,7.65802]
[1724356222520,3.82824,2612.2,2611.6,3.82897]
[1724356222760,2.4003,2612.3,2611.7,3.82878]
[1724356222943,2.4003,2612.3,2611.8,3.82865]
[1724356223145,2.4003,2612.3,2611.8,7.65732]
[1724356223355,2.4003,2612.3,2611.8,3.82865]
[1724356224231,2.4003,2612.3,2611.8,7.65733]
[1724356224592,2.4003,2612.3,2611.9,3.82861]
[1724356225370,2.4003,2612.3,2612.0,3.82843]
[1724356225565,2.4003,2612.3,2611.8,4.6709554]
[1724356225751,2.4003,2612.3,2611.9,3.82854]
[1724356226095,2.4003,2612.3,2611.9,3.82853]
[1724356226230,2.4003,2612.3,2612.0,0.46708454]
[1724356226432,3.8279,2612.4,2612.0,0.46708454]
[1724356226745,2.3255,2612.5,2612.0,4.29554454]
[1724356227447,2.3255,2612.5,2612.1,3.82831]
[1724356227585,2.3255,2612.5,2612.1,3.82822]
[1724356227789,6.1529,2612.8,2612.1,4.64060345]
[1724356228088,3.82747,2612.7,2612.1,8.46879345]
[1724356228247,3.82747,2612.7,2612.1,8.46882345]
[1724356228443,3.82747,2612.7,2612.2,3.82818]
[1724356228645,3.82747,2612.7,2612.2,4.67505535]
[1724356229399,3.82747,2612.7,2612.2,0.84687535]
[1724356229706,3.82747,2612.7,2612.2,4.67497535]
[1724356229918,2.3255,2612.8,2612.3,3.82803]
[1724356230064,2.3255,2612.8,2612.4,3.82787]
[1724356230262,2.3255,2612.8,2612.4,4.75469703]
[1724356230485,2.3255,2612.8,2612.4,0.85027754]
[1724356230486,6.15283,2612.8,2612.4,0.85027754]
[1724356230646,6.15283,2612.8,2612.3,3.82793]
[1724356230846,6.15283,2612.8,2612.3,7.6559]
[1724356231052,2.3255,2612.8,2612.3,3.82793]
[1724356231251,2.3255,2612.8,2612.4,3.82788]
[1724356231477,6.15282,2612.8,2612.4,3.82788]
[1724356232058,2.3255,2612.8,2612.4,7.65576]
[1724356232277,2.3255,2612.8,2612.4,4.67814354]
[1724356234772,2.3255,2612.8,2612.5,3.82773]
[1724356234996,2.3255,2612.8,2612.4,8.50589354]
[1724356235362,2.355,2613.1,2612.7,3.82737]
[1724356235677,2.355,2613.1,2612.9,3.82716]
[1724356235862,2.355,2613.3,2612.9,3.82716]
[1724356236590,2.355,2613.3,2612.8,7.65453]
[1724356236765,2.355,2613.3,2612.8,4.592673]
[1724356236978,6.18159,2613.3,2612.8,4.592673]
[1724356237808,6.18159,2613.3,2612.4,12.03807354]
[1724356237809,2.355,2613.3,2612.4,12.03807354]
[1724356237952,3.82714,2613.0,2612.4,12.03807354]
[1724356238285,2.369,2612.9,2612.4,8.21026354]
[1724356238515,3.82739,2612.8,2612.4,8.21026354]
[1724356239029,3.82739,2612.8,2611.8,18.59454]
[1724356239030,2.369,2612.9,2611.8,9.97311]
[1724356239315,2.369,2612.9,2611.8,7.65727]
[1724356239316,3.82792,2612.4,2611.8,7.65727]
[1724356239482,3.82792,2612.4,2611.8,3.82863]
[1724356239483,2.369,2612.3,2611.8,3.82863]
[1724356239676,2.369,2612.3,2611.9,0.382863]
[1724356239872,2.369,2612.3,2611.9,4.211423]
[1724356240105,2.369,2612.3,2611.9,3.82854]
[1724356240276,3.82821,2612.2,2611.6,3.82897]
[1724356240503,3.82821,2612.2,2611.7,3.8289]
[1724356241486,3.82821,2612.2,2611.8,3.82877]
[1724356241699,6.19706,2612.3,2611.8,3.82877]
[1724356243519,3.82822,2612.2,2611.7,3.82891]
[1724356243722,3.82822,2612.2,2610.4,1.20422788]
[1724356243723,3.82863,2611.9,2611.4,3.82926]
[1724356243924,2.2886,2611.8,2611.4,3.82926]
[1724356244125,3.82902,2611.7,2611.2,3.82956]
[1724356244424,2.2886,2611.6,2611.2,3.82961]
[1724356244592,2.2886,2611.6,2611.1,3.82979]
[1724356244780,2.2886,2611.6,2611.2,3.82963]
[1724356245185,2.2886,2611.6,2611.2,3.82956]
[1724356246220,2.2886,2611.6,2611.3,3.8295]
[1724356248024,2.2886,2611.6,2611.1,3.82967]
[1724356248331,2.2886,2611.6,2611.2,3.82957]
[1724356248487,2.2886,2611.6,2611.3,3.82947]
[1724356248693,2.2886,2611.9,2611.0,2.4986]
[1724356249095,2.2886,2611.9,2611.6,3.82904]
[1724356249293,2.2886,2611.8,2611.0,0.39997286]
[1724356249489,2.2886,2611.8,2611.0,7.65966]
[1724356249490,2.2886,2611.6,2611.0,7.65966]
[1724356249741,6.1177,2611.6,2611.0,3.82982]
[1724356249928,4.44099,2611.5,2611.0,3.82982]
[1724356250552,3.82923,2611.5,2611.0,3.82982]
[1724356250719,0.22886,2611.8,2610.8,3.83009]
[1724356250720,6.11796,2611.4,2610.8,3.83009]
[1724356250919,6.11796,2611.4,2610.6,3.8305]
[1724356250920,3.82966,2611.2,2610.6,3.83042]
[1724356251120,2.2886,2611.1,2610.8,3.83022]
[1724356251794,2.2886,2611.1,2610.9,3.83006]
[1724356252241,2.2886,2611.1,2610.8,7.66037]
[1724356252468,2.2886,2611.1,2610.8,3.83015]
[1724356252617,2.2886,2611.5,2610.8,0.383015]
[1724356252964,2.2886,2611.5,2611.3,3.82949]
[1724356253259,2.2886,2611.7,2611.4,3.82936]
[1724356253415,2.2886,2611.7,2611.3,3.82941]
[1724356253739,2.2886,2611.7,2611.4,3.82928]
[1724356254033,2.2886,2611.7,2611.3,4.595324]
[1724356254541,1.99291908,2612.5,2611.3,4.595324]
[1724356254542,2.2886,2612.1,2611.6,3.82894]
[1724356256702,2.2886,2612.1,2611.7,3.82881]
[1724356256996,2.2886,2612.1,2611.7,4.60224254]
[1724356257662,2.2886,2612.1,2611.7,0.77343254]
[1724356257862,2.2886,2612.1,2611.6,3.82894]
[1724356258126,2.2886,2612.1,2611.7,3.82891]
[1724356258935,2.2886,2612.1,2611.6,3.82894]
[1724356260549,6.11702,2612.1,2611.4,7.65851]
[1724356260725,2.2886,2611.8,2611.2,7.36]
[1724356260941,2.2886,2611.8,2611.2,8.096]
[1724356261242,2.2886,2611.8,2611.4,3.82922]
[1724356261643,2.2886,2611.8,2611.5,3.82921]
[1724356262049,2.2886,2612.0,2611.6,3.82901]
[1724356262370,2.2886,2612.0,2611.5,3.82913]
[1724356262568,2.2886,2612.0,2611.3,3.954]
[1724356262569,2.2886,2612.0,2611.7,3.82883]
[1724356262770,6.11672,2612.3,2611.7,3.82883]
[1724356262966,2.2886,2612.3,2611.8,3.82869]
[1724356263466,6.11673,2612.3,2611.7,7.65766]
[1724356263629,6.11673,2612.3,2611.7,4.6328873]
[1724356263929,2.2886,2612.3,2611.8,3.82877]
[1724356264769,2.2886,2612.3,2611.9,3.82861]
[1724356265168,6.11671,2612.3,2611.7,4.6328873]
[1724356265482,3.82819,2612.2,2611.7,4.6328873]
[1724356265850,2.2765,2612.1,2611.7,4.6328873]
[1724356266051,2.2765,2612.1,2611.5,3.82912]
[1724356266251,3.82858,2612.0,2611.5,3.82912]
[1724356267045,3.82858,2612.0,2611.6,3.82906]
[1724356267346,6.10485,2612.1,2611.6,3.82906]
[1724356267660,2.2765,2612.1,2611.5,3.82912]
[1724356267862,2.2765,2612.1,2611.7,3.82888]
[1724356268097,1.9983805,2612.6,2611.6,0.382912]
[1724356268098,6.09593,2612.5,2612.0,3.82834]
[1724356268385,9.92376,2612.5,2612.0,3.82834]
[1724356268575,9.92377,2612.5,2612.0,3.82834]
[1724356268984,3.82793,2612.4,2611.8,3.82863]
[1724356269146,3.82843,2612.1,2611.6,4.211892]
[1724356269346,3.82857,2612.0,2611.5,3.82919]
[1724356269550,7.65662,2612.2,2611.6,3.82904]
[1724356269771,3.82833,2612.1,2611.6,3.82904]
[1724356270111,6.1804,2612.0,2611.4,3.82929]
[1724356270250,3.82863,2611.9,2611.4,3.82922]
[1724356271351,3.82866,2611.9,2611.4,3.82922]
[1724356271550,2.3519,2611.7,2611.2,14.18957]
[1724356272450,2.969968,2611.7,2611.1,3.82979]
[1724356272693,3.82909,2611.6,2611.1,3.82979]
[1724356273073,2.969968,2611.7,2611.2,3.82964]
[1724356273296,2.3519,2611.7,2611.2,3.82964]
[1724356274176,2.3519,2611.7,2611.0,3.954]
[1724356274177,2.3519,2611.7,2611.1,2.371]
[1724356274382,6.27964,2612.1,2611.6,3.82895]
[1724356275690,3.82851,2612.0,2611.4,7.65848]
[1724356276206,3.82851,2612.0,2611.5,3.82919]
[1724356276806,0.627981,2611.9,2611.3,3.82943]
[1724356277023,6.30824,2611.8,2611.3,3.82943]
[1724356277370,2.4794,2611.8,2611.3,3.82943]
[1724356277569,2.4794,2611.8,2611.4,3.82928]
[1724356277874,2.4794,2611.8,2611.3,3.82941]
[1724356278131,6.30818,2611.8,2611.3,3.82941]
[1724356278621,2.4794,2611.8,2611.3,5.568423]
[1724356278961,2.4794,2611.8,2611.5,3.82916]
[1724356280106,2.353,2612.0,2611.6,3.82898]
[1724356280481,6.18149,2612.0,2611.6,3.82898]
[1724356280883,2.353,2612.3,2611.9,3.82855]
[1724356281263,6.18111,2612.3,2611.8,3.82877]
[1724356281695,3.82819,2612.2,2611.8,3.82877]
[1724356281867,3.82819,2612.2,2611.5,3.82908]
[1724356282068,3.82849,2612.0,2611.5,3.82908]
[1724356282269,2.4081,2611.9,2611.3,3.8294]
[1724356282571,2.4081,2611.5,2611.1,3.8297]
[1724356282878,10.06661,2611.5,2611.0,3.82994]
[1724356283081,6.23731,2611.5,2610.9,3.83009]
[1724356283269,3.82967,2611.2,2610.7,3.83024]
[1724356283608,3.82967,2611.2,2610.7,7.66055]
[1724356283810,3.82951,2611.3,2610.8,3.83023]
[1724356284371,3.82951,2611.3,2610.7,3.83024]
[1724356284372,3.82937,2611.4,2610.9,3.83007]
[1724356285115,3.82937,2611.4,2610.9,3.83002]
[1724356285709,3.82937,2611.4,2610.9,7.66001]
[1724356286007,3.82937,2611.4,2611.0,3.82992]
[1724356286375,2.4081,2611.5,2611.2,3.82964]
[1724356286574,5.82832305,2611.7,2611.4,3.82936]
[1724356286575,4.40739305,2611.7,2611.4,3.82936]
[1724356287385,4.40739305,2611.7,2611.4,3.82925]
[1724356287584,2.4081,2611.7,2611.5,0.382925]
[1724356287771,2.4081,2611.7,2611.4,3.82936]
[1724356288209,8.12437583,2612.0,2611.5,3.82915]
[1724356288615,4.29584583,2612.0,2611.5,3.82915]
[1724356288797,2.2922,2612.0,2611.6,3.829]
[1724356289170,4.29584583,2612.0,2611.5,3.82915]
[1724356289385,8.12444583,2612.0,2611.5,3.82915]
[1724356289685,3.82863,2611.9,2611.5,3.82915]
[1724356290303,3.82909,2611.6,2611.1,3.82973]
[1724356290489,2.2922,2611.5,2611.1,3.82971]
[1724356291179,2.2922,2611.5,2611.1,7.65943]
[1724356291521,2.2922,2611.5,2611.2,3.82964]
[1724356292318,2.2922,2611.5,2611.1,4.595653]
[1724356292616,2.2922,2611.5,2610.9,7.66001]
[1724356292617,3.82943,2611.4,2610.9,7.66001]
[1724356292776,3.82943,2611.4,2610.9,7.66]
[1724356292980,3.82943,2611.4,2610.9,3.82999]
[1724356293211,3.82943,2611.4,2610.9,7.66]
[1724356293817,3.82943,2611.4,2610.9,3.82999]
[1724356295327,3.82943,2611.4,2610.9,7.66001]
[1724356295674,3.82943,2611.4,2610.9,3.82999]
[1724356296353,3.82943,2611.4,2610.9,7.65998]
[1724356297384,2.2922,2611.5,2611.0,3.82986]
[1724356297638,6.12141,2611.5,2611.0,3.82986]
[1724356298141,2.2922,2611.5,2611.0,3.82986]
[1724356300123,2.2922,2611.5,2611.1,3.82978]
[1724356301009,2.00361894,2611.7,2611.4,3.82931]
[1724356301316,2.4706,2611.8,2611.5,3.82914]
[1724356301691,2.4706,2611.8,2611.6,3.82906]
[1724356301892,2.4706,2611.8,2611.5,3.82914]
[1724356302742,2.4706,2611.8,2611.4,3.82935]
[1724356303108,2.4706,2611.8,2611.3,3.8294]
[1724356303284,3.829,2611.7,2611.1,3.8297]
[1724356303488,3.829,2611.7,2611.2,3.82957]
[1724356303489,7.65804,2611.7,2611.2,3.82957]
[1724356303690,3.82907,2611.6,2611.1,3.8298]
[1724356304730,3.82907,2611.6,2611.1,7.6596]
[1724356304908,3.829,2611.7,2611.2,3.82963]
[1724356305919,7.65804,2611.7,2611.2,3.82963]
[1724356306221,4.31802754,2611.7,2611.2,3.82963]
[1724356306407,8.14704754,2611.7,2611.2,3.82963]
[1724356306636,4.31802754,2611.7,2611.2,3.82963]
[1724356306840,8.14702754,2611.7,2611.2,3.82963]
[1724356307239,4.31802754,2611.7,2611.2,3.82963]
[1724356307628,8.14702754,2611.7,2611.2,3.82963]
[1724356307830,5.04221389,2611.6,2611.1,3.8298]
[1724356308047,2.4011,2611.5,2611.1,3.8298]
[1724356308643,6.23037,2611.5,2611.0,3.82994]
[1724356308848,3.82937,2611.4,2611.0,3.82994]
[1724356309057,6.23032,2611.5,2611.0,3.82994]
[1724356309527,3.82936,2611.4,2611.0,3.82994]
[1724356309729,3.82936,2611.4,2610.8,3.83021]
[1724356309730,3.82936,2611.4,2610.8,3.83015]
[1724356309934,6.30771,2611.3,2610.8,3.83014]
[1724356310131,6.30771,2611.3,2610.8,7.66029]
[1724356310345,6.30771,2611.3,2610.9,3.83008]
[1724356311329,7.52085389,2611.3,2610.8,3.83023]
[1724356311529,7.52085389,2611.3,2610.8,3.83016]
[1724356311733,7.52085389,2611.3,2610.8,7.66033]
[1724356312239,7.52085389,2611.3,2610.8,3.83016]
[1724356312436,7.52085389,2611.3,2610.8,7.66033]
[1724356312642,6.30771,2611.3,2610.8,7.66033]
[1724356313523,6.30771,2611.3,2610.8,3.83016]
[1724356313720,3.82974,2611.2,2610.6,3.83042]
[1724356313924,2.4782,2611.0,2610.6,3.83042]
[1724356314332,2.4782,2611.0,2610.4,14.19074]
[1724356314333,6.30823,2611.0,2610.5,3.83068]
[1724356314534,8.3125383,2611.0,2610.5,3.83068]
[1724356315891,2.4782,2611.0,2610.6,3.83052]
[1724356317397,2.4782,2611.0,2610.6,3.83045]
[1724356317527,2.4782,2611.0,2610.6,7.6609]
[1724356317733,2.4782,2611.0,2610.7,3.83036]
[1724356317961,2.4782,2611.0,2610.6,3.83045]
[1724356317962,2.4782,2611.0,2610.6,3.83053]
[1724356319671,2.4782,2611.0,2610.4,3.83068]
[1724356319672,6.30822,2611.0,2610.4,3.83068]
[1724356320169,3.54960043,2611.0,2610.4,3.83082]
[1724356320354,6.30817,2611.0,2610.5,3.83058]
[1724356321494,2.4782,2611.0,2610.6,3.83048]
[1724356322767,3.82969,2611.2,2610.6,3.83048]
[1724356322768,6.32809,2611.2,2610.7,3.83036]
[1724356322971,6.32809,2611.2,2610.7,3.8303]
[1724356323385,3.82981,2611.1,2610.7,3.8303]
[1724356323533,6.32809,2611.2,2610.7,3.8303]
[1724356324147,6.08816,2611.4,2610.7,4.838066]
[1724356324457,6.08816,2611.4,2610.9,3.83001]
[1724356325539,6.08816,2611.4,2611.0,3.82993]
[1724356325749,6.08785,2611.6,2611.1,3.82978]
[1724356326177,3.82895,2611.7,2611.2,3.82957]
[1724356327064,3.82908,2611.6,2611.2,3.82957]
[1724356327463,6.08741,2611.9,2611.4,3.82927]
[1724356327651,6.08741,2611.9,2611.2,3.82951]
[1724356327848,6.08741,2611.9,2611.1,0.765971]
[1724356327849,3.8289,2611.8,2611.3,4.29664207]
[1724356328082,3.82918,2611.6,2611.1,0.765971]
[1724356328280,3.82933,2611.5,2611.1,0.765971]
[1724356328637,3.82937,2611.4,2611.0,3.82984]
[1724356329100,3.82937,2611.4,2610.9,3.83006]
[1724356330195,3.82937,2611.4,2610.8,6.09511]
[1724356330196,3.82954,2611.3,2610.8,6.09511]
[1724356330489,3.82937,2611.4,2610.8,6.09511]
[1724356330490,3.82965,2611.2,2610.8,3.83021]
[1724356330668,3.82937,2611.4,2610.8,5.0927966]
[1724356331286,4.26558883,2611.5,2610.9,6.09491]
[1724356331515,2.00712227,2611.7,2611.2,3.82962]
[1724356331790,2.00712227,2611.7,2610.9,6.2229]
[1724356331791,2.00712227,2611.7,2611.3,7.65889]
[1724356331991,6.08747,2611.8,2611.4,3.82934]
[1724356331992,8.09459227,2611.8,2611.4,3.82934]
[1724356332143,8.09459227,2611.8,2611.3,4.595309]
[1724356332347,2.00712227,2611.8,2611.3,4.595309]
[1724356332557,2.00712227,2611.8,2611.4,2.2649]
[1724356332558,3.82879,2611.8,2611.4,2.2649]
[1724356332764,5.83591227,2611.8,2611.3,3.8295]
[1724356333187,5.83591227,2611.8,2611.3,3.82943]
[1724356333951,8.09461227,2611.8,2611.3,3.82943]
[1724356334270,6.08749,2611.8,2611.3,7.65886]
[1724356334471,6.08749,2611.8,2611.4,0.765886]
[1724356334692,6.08749,2611.8,2611.3,3.82943]
[1724356334878,6.08749,2611.8,2611.3,3.82941]
[1724356335190,2.00712227,2612.0,2611.5,3.82911]
[1724356335366,2.00712227,2612.0,2611.6,3.82895]
[1724356335549,2.00712227,2612.0,2611.5,6.11671]
[1724356335550,3.82849,2612.0,2611.5,6.11671]
[1724356336889,3.82863,2611.9,2611.5,3.82911]
[1724356337816,5.83546937,2612.0,2611.5,7.65824]
[1724356338018,3.82849,2612.0,2611.5,3.82911]
[1724356338173,9.66407937,2612.0,2611.5,3.82911]
[1724356338763,3.82879,2611.8,2611.3,3.8294]
[1724356339006,3.82879,2611.8,2611.3,8.66633]